bitfinex/quotes_BTCUSD_20241119
["timestamp","ask_amount","ask_price","bid_price","bid_amount"]
[1732001599210,0.02198549,91851.0,91850.0,0.19024828]
[1732001599427,0.02198549,91851.0,91850.0,0.23614828]
[1732001599428,0.0017102,91851.0,91850.0,0.23614828]
[1732001599885,0.0017102,91851.0,91850.0,0.23714828]
[1732001599886,0.0057102,91851.0,91850.0,0.23714828]
[1732001600582,0.0017102,91851.0,91850.0,0.23614828]
[1732001600812,0.0027102,91851.0,91850.0,0.23914828]
[1732001601285,0.0017102,91851.0,91850.0,0.23614828]
[1732001601512,0.0047102,91851.0,91850.0,0.25014828]
[1732001601767,0.0037102,91851.0,91850.0,0.23914828]
[1732001601978,0.0067102,91851.0,91850.0,0.26014828]
[1732001602682,0.11398674,91865.0,91864.0,0.108856]
[1732001602906,0.11398674,91865.0,91864.0,0.239256]
[1732001603162,0.217691,91873.0,91864.0,0.239256]
[1732001603406,0.108849,91870.0,91864.0,0.239256]
[1732001603879,0.001,91865.0,91864.0,0.242256]
[1732001604371,0.21790955,91872.0,91864.0,0.242256]
[1732001604372,0.21790955,91872.0,91865.0,0.108854]
[1732001604599,0.108847,91872.0,91866.0,0.108853]
[1732001605064,0.001,91870.0,91866.0,0.108853]
[1732001605295,0.001,91870.0,91869.0,0.10885]
[1732001606425,0.0017098,91877.0,91871.0,0.108847]
[1732001606664,0.001,91872.0,91866.0,0.024]
[1732001606910,0.001,91872.0,91871.0,0.108848]
[1732001607132,0.0017098,91877.0,91872.0,0.108846]
[1732001607361,0.0017098,91877.0,91870.0,0.108849]
[1732001607582,0.1105508,91877.0,91870.0,0.108849]
[1732001608051,0.1105508,91877.0,91869.0,0.015]
[1732001608287,0.005,91872.0,91871.0,0.109847]
[1732001609452,0.1105508,91877.0,91871.0,0.108847]
[1732001609671,0.001,91872.0,91871.0,0.120847]
[1732001610808,0.1105508,91877.0,91871.0,0.108847]
[1732001611033,0.005,91872.0,91871.0,0.109847]
[1732001611260,0.005,91872.0,91871.0,0.121847]
[1732001611471,0.005,91872.0,91871.0,0.109847]
[1732001611686,0.006,91872.0,91871.0,0.121847]
[1732001612129,0.006,91872.0,91871.0,0.013]
[1732001612341,0.109847,91872.0,91871.0,0.012]
[1732001612611,0.001,91872.0,91871.0,0.012]
[1732001612817,0.001,91872.0,91871.0,0.013]
[1732001613274,0.001,91872.0,91871.0,0.012]
[1732001613488,0.006,91872.0,91871.0,0.013]
[1732001613701,0.13650858,91872.0,91871.0,0.013]
[1732001613911,0.02766158,91872.0,91871.0,0.013]
[1732001617640,0.108846,91873.0,91871.0,0.013]
[1732001618110,0.108846,91873.0,91871.0,0.0138546]
[1732001618354,0.0017092,91872.0,91871.0,0.0138546]
[1732001618571,0.0017092,91872.0,91871.0,0.0128546]
[1732001618790,0.0017092,91872.0,91871.0,0.0138546]
[1732001619004,0.0017092,91872.0,91871.0,0.0018546]
[1732001619226,0.0017092,91872.0,91871.0,0.0138546]
[1732001619450,0.0017092,91872.0,91871.0,0.0128546]
[1732001619677,0.0067092,91872.0,91871.0,0.0138546]
[1732001620340,0.1155562,91872.0,91871.0,0.0138546]
[1732001620577,0.1155562,91872.0,91871.0,0.0018546]
[1732001621048,0.22561875,91872.0,91871.0,0.0138546]
[1732001623719,0.24592898,91872.0,91871.0,0.0138546]
[1732001625531,0.22561875,91872.0,91871.0,0.0138546]
[1732001632460,0.11006255,91872.0,91871.0,0.0138546]
[1732001632933,0.21890955,91872.0,91871.0,0.0138546]
[1732001633155,0.21790955,91872.0,91871.0,0.0018546]
[1732001633385,0.21890955,91872.0,91871.0,0.0138546]
[1732001633607,0.21890955,91872.0,91871.0,0.0128546]
[1732001633834,0.22090955,91872.0,91871.0,0.0138546]
[1732001637495,0.003,91872.0,91871.0,0.0138546]
[1732001637973,0.003,91872.0,91871.0,0.1227026]
[1732001638601,0.001,91872.0,91871.0,0.1217026]
[1732001639321,0.0017098,91877.0,91872.0,0.217694]
[1732001639763,0.0017098,91877.0,91871.0,0.04909302]
[1732001640004,0.0017098,91877.0,91871.0,0.0128546]
[1732001640223,0.0017098,91877.0,91873.0,0.108845]
[1732001640675,0.0027098,91877.0,91876.0,0.108842]
[1732001640915,0.0027098,91877.0,91873.0,0.217691]
[1732001640916,0.0017098,91877.0,91873.0,0.108845]
[1732001641125,0.0027098,91877.0,91871.0,0.0138546]
[1732001641353,0.0027098,91877.0,91871.0,0.0128546]
[1732001641588,0.0057098,91877.0,91873.0,0.109845]
[1732001642036,0.0027098,91877.0,91874.0,0.108844]
[1732001642246,0.0037098,91877.0,91874.0,0.108844]
[1732001642674,0.0027098,91877.0,91872.0,0.108846]
[1732001642901,0.0027098,91877.0,91876.0,0.003]
[1732001643177,0.0027098,91877.0,91871.0,0.0018546]
[1732001643422,0.0037098,91877.0,91874.0,0.007]
[1732001643647,0.02037559,91876.0,91871.0,0.0018546]
[1732001643895,0.02037559,91875.0,91871.0,0.1097016]
[1732001644115,0.02037559,91874.0,91872.0,0.108846]
[1732001644333,0.0057098,91877.0,91872.0,0.108847]
[1732001644543,0.02037454,91876.0,91874.0,0.007]
[1732001644753,0.02037454,91875.0,91874.0,0.007]
[1732001644959,0.02137454,91875.0,91874.0,0.007]
[1732001645205,0.02137454,91875.0,91874.0,0.115844]
[1732001645429,0.02037454,91875.0,91874.0,0.115844]
[1732001645641,0.02037454,91875.0,91874.0,0.108844]
[1732001645869,0.02037454,91875.0,91874.0,0.109844]
[1732001646075,0.02137454,91875.0,91874.0,0.109844]
[1732001646508,0.02137454,91875.0,91874.0,0.116844]
[1732001646727,0.02237454,91875.0,91874.0,0.243944]
[1732001646983,0.002,91875.0,91874.0,0.242944]
[1732001647200,0.002,91875.0,91874.0,0.32453711]
[1732001647409,0.006,91875.0,91874.0,0.32453711]
[1732001647612,0.09735102,91888.0,91887.0,0.187929]
[1732001647857,0.0017094,91896.0,91887.0,0.187929]
[1732001647858,0.0017094,91896.0,91889.0,0.108826]
[1732001648274,0.02035424,91895.0,91889.0,0.108826]
[1732001648490,0.0017094,91896.0,91889.0,0.108826]
[1732001648699,0.02035412,91895.0,91889.0,0.108826]
[1732001648928,0.0017094,91896.0,91889.0,0.108826]
[1732001649142,0.02035405,91895.0,91889.0,0.108826]
[1732001649355,0.0017094,91896.0,91889.0,0.108826]
[1732001649586,0.0027096,91890.0,91889.0,0.118826]
[1732001650029,0.0027096,91890.0,91889.0,0.15379519]
[1732001650277,0.0027096,91890.0,91889.0,0.15479519]
[1732001650489,0.0027096,91890.0,91889.0,0.011]
[1732001650745,0.0027096,91890.0,91889.0,0.119826]
[1732001651381,0.0027096,91890.0,91889.0,0.011]
[1732001651592,0.0027096,91890.0,91889.0,0.119826]
[1732001651829,0.0027096,91890.0,91889.0,0.011]
[1732001652072,0.13186909,91890.0,91889.0,0.011]
[1732001656291,0.02304409,91890.0,91889.0,0.011]
[1732001658453,0.02304409,91890.0,91889.0,0.202526]
[1732001659556,0.0027096,91890.0,91889.0,0.49549164]
[1732001659770,0.0027096,91890.0,91889.0,0.60549164]
[1732001660003,0.0027096,91890.0,91889.0,0.70299175]
[1732001660229,0.0027096,91890.0,91889.0,0.60749164]
[1732001660456,0.0027096,91890.0,91889.0,0.70487859]
[1732001660662,0.0027096,91890.0,91889.0,0.70287859]
[1732001660890,0.0027096,91890.0,91889.0,0.70185477]
[1732001661117,0.0027096,91890.0,91889.0,0.70685477]
[1732001661118,0.0037096,91890.0,91889.0,0.70685477]
[1732001661332,0.0037096,91890.0,91889.0,0.60949164]
[1732001661566,0.0047096,91890.0,91889.0,0.63749164]
[1732001661766,0.0017096,91890.0,91889.0,0.59449164]
[1732001662003,0.0057096,91890.0,91889.0,0.63749164]
[1732001662409,0.0017096,91901.0,91889.0,0.63749164]
[1732001662622,0.16293102,91900.0,91899.0,0.108815]
[1732001663077,0.09791442,91911.0,91910.0,0.108802]
[1732001663300,0.11822643,91911.0,91908.0,0.108804]
[1732001663513,0.108795,91916.0,91910.0,0.108801]
[1732001663726,0.02030603,91915.0,91910.0,0.108801]
[1732001663948,0.02030603,91914.0,91910.0,0.108801]
[1732001664177,0.02030603,91913.0,91910.0,0.108801]
[1732001664384,0.002,91911.0,91910.0,0.122801]
[1732001664604,0.002,91911.0,91910.0,0.014]
[1732001664822,0.0008546,91917.0,91909.0,0.108802]
[1732001665049,0.001,91914.0,91910.0,0.012]
[1732001665270,0.001,91911.0,91910.0,0.04]
[1732001665705,0.001,91914.0,91910.0,0.012]
[1732001666408,0.001,91911.0,91910.0,0.028]
[1732001666633,0.002,91911.0,91910.0,0.014]
[1732001667060,0.001,91911.0,91910.0,0.028]
[1732001667274,0.1098,91911.0,91910.0,0.028]
[1732001667480,0.13010187,91911.0,91910.0,0.042]
[1732001667924,0.13010187,91911.0,91910.0,0.028]
[1732001668150,0.13010187,91911.0,91910.0,0.014]
[1732001668593,0.13110187,91911.0,91910.0,0.042]
[1732001668816,0.02230187,91911.0,91910.0,0.014]
[1732001669030,0.02330187,91911.0,91910.0,0.038]
[1732001669252,0.003,91911.0,91910.0,0.038]
[1732001669462,0.002,91911.0,91910.0,0.024]
[1732001669906,0.002,91911.0,91910.0,0.035]
[1732001669907,0.1118,91911.0,91910.0,0.035]
[1732001672036,0.13210019,91911.0,91910.0,0.035]
[1732001672276,0.13210024,91911.0,91910.0,0.035]
[1732001672468,0.1118,91911.0,91910.0,0.035]
[1732001672638,0.13210136,91911.0,91910.0,0.035]
[1732001672851,0.1118,91911.0,91910.0,0.035]
[1732001673708,0.13210133,91911.0,91910.0,0.035]
[1732001676539,0.13295573,91911.0,91910.0,0.035]
[1732001676755,0.27449777,91911.0,91910.0,0.035]
[1732001677403,0.27449777,91911.0,91910.0,0.024]
[1732001677612,0.27149777,91911.0,91910.0,0.024]
[1732001678036,0.2184584,91911.0,91900.0,0.00035]
[1732001678261,0.108803,91909.0,91902.0,0.10881]
[1732001678721,0.12912763,91908.0,91901.0,0.108812]
[1732001678930,0.02032363,91907.0,91902.0,0.108811]
[1732001679139,0.02032363,91906.0,91901.0,0.108812]
[1732001679347,0.02032363,91905.0,91900.0,0.00035]
[1732001679566,0.002,91909.0,91904.0,0.108809]
[1732001679776,0.02032291,91908.0,91904.0,0.108809]
[1732001679981,0.02032291,91907.0,91904.0,0.108808]
[1732001680208,0.02032291,91906.0,91905.0,0.108807]
[1732001680436,0.02232291,91906.0,91905.0,0.108808]
[1732001680652,0.002,91906.0,91905.0,0.153908]
[1732001682426,0.0008544,91911.0,91906.0,0.326417]
[1732001682638,0.0008544,91911.0,91910.0,0.108802]
[1732001685011,0.0008544,91911.0,91910.0,0.132802]
[1732001685012,0.0038544,91911.0,91910.0,0.132802]
[1732001685462,0.0018544,91911.0,91910.0,0.132802]
[1732001685899,0.0018544,91911.0,91910.0,0.143802]
[1732001685900,0.0028544,91911.0,91910.0,0.143802]
[1732001686973,0.02319373,91911.0,91910.0,0.143802]
[1732001687191,0.0028544,91911.0,91910.0,0.035]
[1732001687420,0.1319994,91911.0,91910.0,0.035]
[1732001688052,0.16455321,91911.0,91910.0,0.035]
[1732001688261,0.1319994,91911.0,91910.0,0.035]
[1732001688477,0.16456394,91911.0,91910.0,0.035]
[1732001689613,0.16456394,91911.0,91910.0,0.0367084]
[1732001690449,0.05576394,91911.0,91910.0,0.0367084]
[1732001691943,0.16456394,91911.0,91910.0,0.0367084]
[1732001692151,0.19717384,91911.0,91910.0,0.0367084]
[1732001692360,0.1646093,91911.0,91910.0,0.0367084]
[1732001692592,0.0529549,91911.0,91910.0,0.0367084]
[1732001693027,0.0529549,91911.0,91910.0,0.0257084]
[1732001693229,0.0539549,91911.0,91910.0,0.0367084]
[1732001693668,0.1627549,91911.0,91910.0,0.0127084]
[1732001693895,0.0539549,91911.0,91910.0,0.0127084]
[1732001694102,0.0539549,91911.0,91910.0,0.1215104]
[1732001694519,0.0549549,91911.0,91910.0,0.1455104]
[1732001694741,0.02136727,91911.0,91910.0,0.1215104]
[1732001694944,0.02236727,91911.0,91910.0,0.1455104]
[1732001695157,0.02136727,91911.0,91910.0,0.1345104]
[1732001695377,0.02136634,91911.0,91910.0,0.1345104]
[1732001695599,0.02236634,91911.0,91910.0,0.1465104]
[1732001698739,0.002,91911.0,91910.0,0.1465104]
[1732001698963,0.002,91911.0,91910.0,0.1949104]
[1732001699167,0.002,91911.0,91910.0,0.2729104]
[1732001700011,0.002,91911.0,91910.0,0.39197295]
[1732001701268,0.001,91911.0,91910.0,0.36797295]
[1732001701695,0.001,91911.0,91910.0,0.38397295]
[1732001701910,0.003,91911.0,91910.0,0.40497295]
[1732001702342,0.0018543,91911.0,91910.0,0.38397295]
[1732001702775,0.0038543,91911.0,91910.0,0.40497295]
[1732001703840,0.0038543,91911.0,91910.0,0.51497295]
[1732001704262,0.0038543,91911.0,91910.0,0.6124603]
[1732001704511,0.0038543,91911.0,91910.0,0.51497295]
[1732001704731,0.0038543,91911.0,91910.0,0.51697295]
[1732001705237,0.0038543,91911.0,91910.0,0.71194766]
[1732001705482,0.0038543,91911.0,91910.0,0.51697295]
[1732001706594,0.0038543,91911.0,91910.0,0.51497295]
[1732001706811,0.0038543,91911.0,91910.0,0.70993561]
[1732001707023,0.0038543,91911.0,91910.0,0.33865386]
[1732001707446,0.0038543,91911.0,91910.0,0.44745586]
[1732001707659,0.16293102,91921.0,91910.0,0.44745586]
[1732001707660,0.09263992,91921.0,91920.0,0.21879]
[1732001707919,0.09263992,91921.0,91920.0,0.32785255]
[1732001708142,0.16293102,91931.0,91928.0,0.10878]
[1732001708802,0.02032689,91936.0,91928.0,0.10878]
[1732001709012,0.0457,91937.0,91928.0,0.10878]
[1732001709243,0.24023102,91941.0,91928.0,0.11954009]
[1732001709462,0.02032374,91940.0,91928.0,0.11954009]
[1732001709676,0.02032374,91939.0,91928.0,0.12154009]
[1732001709894,0.16293102,91941.0,91928.0,0.12154009]
[1732001711313,0.16293102,91941.0,91928.0,0.11954009]
[1732001711515,0.0014,91929.0,91928.0,0.25160264]
[1732001711725,0.0014,91929.0,91928.0,0.2864075]
[1732001712039,0.0004,91929.0,91928.0,0.2624075]
[1732001712216,0.0004,91929.0,91928.0,0.2904075]
[1732001712415,0.0014,91929.0,91928.0,0.3034075]
[1732001712616,0.0014,91929.0,91928.0,0.2754075]
[1732001712816,0.0004,91929.0,91928.0,0.2904075]
[1732001713042,0.0004,91929.0,91928.0,0.3154075]
[1732001713201,0.0024,91929.0,91928.0,0.3154075]
[1732001714245,0.0032542,91929.0,91928.0,0.3154075]
[1732001716030,0.0032542,91929.0,91928.0,0.2904075]
[1732001716228,0.0012542,91929.0,91928.0,0.2624075]
[1732001716447,0.0012542,91929.0,91928.0,0.2904075]
[1732001716658,0.0012542,91929.0,91928.0,0.2624075]
[1732001717293,0.0012542,91929.0,91928.0,0.2904075]
[1732001717503,0.0032542,91929.0,91928.0,0.3154075]
[1732001719749,0.0032542,91929.0,91928.0,0.3434075]
[1732001719975,0.0032542,91929.0,91928.0,0.2874075]
[1732001720207,0.0032542,91929.0,91928.0,0.3154075]
[1732001720415,0.0012542,91929.0,91928.0,0.2904075]
[1732001720624,0.0012542,91929.0,91928.0,0.2624075]
[1732001720840,0.00274973,91929.0,91928.0,0.3134075]
[1732001721296,0.00074973,91929.0,91928.0,0.2904075]
[1732001721500,0.00274973,91929.0,91928.0,0.3154075]
[1732001721930,0.00074973,91929.0,91928.0,0.2904075]
[1732001722146,0.00274973,91929.0,91928.0,0.2854075]
[1732001722374,0.00274973,91929.0,91928.0,0.3134075]
[1732001722572,0.16293102,91941.0,91928.0,0.3134075]
[1732001722573,0.09068075,91941.0,91937.0,0.108769]
[1732001722868,0.09068075,91941.0,91939.0,0.108766]
[1732001723080,0.0008546,91943.0,91939.0,0.108766]
[1732001723557,0.02031402,91942.0,91939.0,0.108766]
[1732001723790,0.0008546,91943.0,91939.0,0.108766]
[1732001724006,0.02031402,91942.0,91939.0,0.108766]
[1732001724214,0.0008546,91943.0,91939.0,0.108766]
[1732001724215,0.0008546,91943.0,91939.0,0.134766]
[1732001724421,0.02031848,91942.0,91939.0,0.026]
[1732001724642,0.0008546,91943.0,91939.0,0.026]
[1732001724850,0.02031848,91942.0,91939.0,0.026]
[1732001725052,0.0008546,91943.0,91939.0,0.134767]
[1732001725254,0.02031889,91942.0,91939.0,0.134767]
[1732001725430,0.0008546,91943.0,91939.0,0.026]
[1732001725665,0.0213236,91942.0,91939.0,0.039]
[1732001725903,0.0203236,91941.0,91939.0,0.039]
[1732001726137,0.0203236,91941.0,91940.0,0.21782855]
[1732001726346,0.001,91942.0,91941.0,0.188865]
[1732001726557,0.001,91942.0,91941.0,0.21782755]
[1732001726971,0.0018541,91942.0,91941.0,0.21782755]
[1732001727191,0.0008541,91942.0,91941.0,0.21782755]
[1732001727394,0.0018541,91942.0,91941.0,0.21782755]
[1732001727817,0.0008541,91942.0,91941.0,0.21782755]
[1732001728232,0.0018541,91942.0,91941.0,0.22882755]
[1732001728655,0.0008541,91942.0,91941.0,0.21782755]
[1732001728862,0.0008541,91942.0,91941.0,0.25382755]
[1732001729077,0.0018541,91942.0,91941.0,0.23082755]
[1732001729273,0.0018541,91942.0,91941.0,0.23058764]
[1732001729513,0.0018541,91942.0,91941.0,0.25758764]
[1732001729763,0.0018541,91942.0,91941.0,0.23058764]
[1732001729968,0.0018541,91942.0,91941.0,0.25758764]
[1732001730171,0.0008541,91942.0,91941.0,0.24458764]
[1732001730376,0.0008541,91942.0,91941.0,0.21758764]
[1732001730576,0.0018541,91942.0,91941.0,0.25758764]
[1732001731059,0.0008541,91942.0,91941.0,0.24458764]
[1732001731275,0.0018541,91942.0,91941.0,0.25758764]
[1732001737624,0.0017102,91951.0,91941.0,0.25758764]
[1732001737625,0.25236144,91965.0,91951.0,0.108753]
[1732001737843,0.108747,91956.0,91951.0,0.108753]
[1732001738045,0.0529132,91955.0,91951.0,0.108753]
[1732001738249,0.0529132,91954.0,91951.0,0.108753]
[1732001738460,0.0529132,91953.0,91951.0,0.108753]
[1732001738694,0.0529132,91952.0,91951.0,0.108753]
[1732001738901,0.0529132,91952.0,91951.0,0.002]
[1732001739556,0.0529132,91952.0,91951.0,0.011]
[1732001739790,0.0529132,91952.0,91951.0,0.119753]
[1732001740023,0.05291908,91952.0,91951.0,0.119753]
[1732001740233,0.05291908,91952.0,91951.0,0.110753]
[1732001740673,0.05291908,91952.0,91951.0,0.119753]
[1732001740860,0.05291908,91952.0,91951.0,0.117753]
[1732001741121,0.05291908,91952.0,91951.0,0.120753]
[1732001741595,0.05291908,91952.0,91951.0,0.117753]
[1732001741812,0.05291908,91952.0,91951.0,0.111753]
[1732001742035,0.05291908,91952.0,91951.0,0.120753]
[1732001742281,0.05291908,91952.0,91951.0,0.012]
[1732001743379,0.05291908,91952.0,91951.0,0.003]
[1732001743593,0.05291908,91952.0,91951.0,0.012]
[1732001743798,0.05291908,91952.0,91951.0,0.009]
[1732001744007,0.05291908,91952.0,91951.0,0.012]
[1732001744647,0.05291908,91952.0,91951.0,0.009]
[1732001744859,0.05291908,91952.0,91951.0,0.003]
[1732001745080,0.05291908,91952.0,91951.0,0.012]
[1732001745759,0.28377108,91952.0,91951.0,0.012]
[1732001745973,0.29736302,91952.0,91951.0,0.012]
[1732001748143,0.28377108,91952.0,91951.0,0.012]
[1732001748372,0.108779,91930.0,91928.0,0.0017082]
[1732001748609,0.48516584,91943.0,91942.0,0.16293102]
[1732001748843,0.48516584,91943.0,91928.0,0.0017082]
[1732001748844,0.326295,91941.0,91928.0,0.0017082]
[1732001749275,0.38353872,91943.0,91928.0,0.0375926]
[1732001749276,0.108779,91929.0,91928.0,0.0375926]
[1732001749277,0.154579,91929.0,91928.0,0.20028371]
[1732001749495,0.17493895,91929.0,91928.0,0.00146829]
[1732001749719,0.2075081,91929.0,91928.0,0.00146829]
[1732001750181,0.2075081,91929.0,91928.0,0.01646829]
[1732001751159,0.2075081,91929.0,91928.0,0.00146829]
[1732001751399,0.28798512,91929.0,91928.0,0.00146829]
[1732001751628,0.41821799,91929.0,91928.0,0.00146829]
[1732001751857,0.32156096,91929.0,91928.0,0.04346829]
[1732001752121,0.28898512,91929.0,91928.0,0.01546829]
[1732001752381,0.28898512,91929.0,91928.0,0.04346829]
[1732001752636,0.18020612,91929.0,91928.0,0.04346829]
[1732001752871,0.28898512,91929.0,91928.0,0.01546829]
[1732001753124,0.28798512,91929.0,91928.0,0.02146829]
[1732001753344,0.30258137,91929.0,91928.0,0.01546829]
[1732001753582,0.30258137,91929.0,91928.0,0.03346829]
[1732001753815,0.30150111,91929.0,91928.0,0.01946829]
[1732001754319,0.30150111,91929.0,91928.0,0.02146829]
[1732001754563,0.28790479,91929.0,91928.0,0.02146829]
[1732001754798,0.28790479,91929.0,91928.0,0.00146829]
[1732001755033,0.28790479,91929.0,91928.0,0.00246829]
[1732001755285,0.28788334,91929.0,91928.0,0.00246829]
[1732001755537,0.20740632,91929.0,91928.0,0.00246829]
[1732001755797,0.09862732,91929.0,91928.0,0.00946829]
[1732001756043,0.05282732,91929.0,91928.0,0.11124829]
[1732001756276,0.0203182,91929.0,91928.0,0.11624829]
[1732001756524,0.0203182,91929.0,91928.0,0.11024829]
[1732001756751,0.23913102,91949.0,91928.0,0.11024829]
[1732001756752,0.03250912,91944.0,91935.0,0.217543]
[1732001756998,0.16293102,91937.0,91936.0,0.108771]
[1732001757229,0.158159,91946.0,91933.0,0.217549]
[1732001757451,0.0203044,91937.0,91934.0,0.217547]
[1732001757664,0.158159,91946.0,91933.0,0.217549]
[1732001757665,0.02030347,91945.0,91939.0,0.108767]
[1732001757883,0.02030347,91944.0,91939.0,0.108767]
[1732001758116,0.02030347,91943.0,91939.0,0.108767]
[1732001758341,0.02030347,91942.0,91940.0,0.10906255]
[1732001758558,0.03334094,91952.0,91951.0,0.108753]
[1732001758559,0.0008539,91952.0,91951.0,0.108753]
[1732001758774,0.02115568,91952.0,91951.0,0.21781555]
[1732001758981,0.0008539,91952.0,91951.0,0.21781555]
[1732001759189,0.0008539,91952.0,91951.0,0.21733555]
[1732001760074,0.0008539,91952.0,91951.0,0.24533555]
[1732001760290,0.0028539,91952.0,91951.0,0.26533555]
[1732001761234,0.0028539,91952.0,91951.0,0.156273]
[1732001761464,0.0028539,91952.0,91951.0,0.128273]
[1732001761912,0.0028539,91952.0,91951.0,0.156273]
[1732001762191,0.0028539,91952.0,91951.0,0.128273]
[1732001762414,0.0008539,91952.0,91951.0,0.136273]
[1732001762633,0.0028539,91952.0,91951.0,0.156273]
[1732001763292,0.0028539,91952.0,91951.0,0.136273]
[1732001763514,0.0008539,91952.0,91951.0,0.136273]
[1732001764378,0.0008539,91952.0,91951.0,0.156273]
[1732001764601,0.0028539,91952.0,91951.0,0.128273]
[1732001764822,0.0028539,91952.0,91951.0,0.134073]
[1732001765458,0.0028539,91952.0,91951.0,0.048]
[1732001765668,0.0028539,91952.0,91951.0,0.156753]
[1732001766612,0.0008539,91952.0,91951.0,0.136753]
[1732001766836,0.0008539,91952.0,91951.0,0.154753]
[1732001767063,0.0018539,91952.0,91951.0,0.154753]
[1732001767542,0.16293102,91959.0,91951.0,0.126753]
[1732001767765,0.16293102,91959.0,91951.0,0.018]
[1732001767766,0.21749,91958.0,91951.0,0.018]
[1732001767997,0.108747,91957.0,91951.0,0.046]
[1732001768225,0.108743,91960.0,91952.0,0.108751]
[1732001768717,0.108744,91959.0,91952.0,0.108752]
[1732001769173,0.109744,91959.0,91952.0,0.108752]
[1732001769412,0.109744,91959.0,91952.0,0.136752]
[1732001769628,0.108744,91959.0,91952.0,0.136752]
[1732001769856,0.109744,91959.0,91952.0,0.151752]
[1732001770317,0.108744,91959.0,91952.0,0.136752]
[1732001770762,0.109744,91959.0,91952.0,0.123752]
[1732001771045,0.109744,91959.0,91952.0,0.151752]
[1732001771297,0.108747,91957.0,91952.0,0.015]
[1732001771523,0.001,91959.0,91952.0,0.015]
[1732001771524,0.108747,91956.0,91952.0,0.043]
[1732001771753,0.108749,91955.0,91952.0,0.043]
[1732001771972,0.21749,91958.0,91952.0,0.043]
[1732001772429,0.108747,91957.0,91952.0,0.015]
[1732001772667,0.21749,91958.0,91952.0,0.028]
[1732001772912,0.108751,91953.0,91952.0,0.044]
[1732001773140,0.001,91957.0,91952.0,0.044]
[1732001773392,0.108749,91955.0,91952.0,0.044]
[1732001773647,0.108751,91953.0,91952.0,0.028]
[1732001773879,0.001,91958.0,91952.0,0.016]
[1732001774095,0.108751,91953.0,91952.0,0.044]
[1732001774301,0.0017096,91962.0,91951.0,0.0017096]
[1732001774519,0.0008548,91959.0,91951.0,0.0017096]
[1732001774743,0.001,91955.0,91952.0,0.044]
[1732001774998,0.10875,91954.0,91952.0,0.016]
[1732001775212,0.10875,91954.0,91952.0,0.044]
[1732001775435,0.001,91955.0,91952.0,0.044]
[1732001775436,0.108751,91953.0,91952.0,0.044]
[1732001775650,0.108751,91953.0,91952.0,0.016]
[1732001776506,0.108752,91952.0,91951.0,0.0297096]
[1732001776715,0.108752,91952.0,91951.0,0.0467096]
[1732001777136,0.108752,91952.0,91951.0,0.0187096]
[1732001777849,0.108752,91952.0,91951.0,0.0017096]
[1732001778063,0.108752,91952.0,91951.0,0.0297096]
[1732001778521,0.03246404,91952.0,91951.0,0.0297096]
[1732001778742,0.0017096,91962.0,91953.0,0.108751]
[1732001778979,0.0017096,91962.0,91951.0,0.0017096]
[1732001778980,0.03246516,91958.0,91951.0,0.0017096]
[1732001779198,0.03246516,91957.0,91955.0,0.108747]
[1732001779426,0.1104496,91962.0,91955.0,0.108747]
[1732001779649,0.05275658,91958.0,91955.0,0.108747]
[1732001779862,0.05275658,91957.0,91955.0,0.108747]
[1732001780081,0.02029099,91956.0,91955.0,0.108747]
[1732001780940,0.02029099,91956.0,91955.0,0.121747]
[1732001781535,0.02029099,91956.0,91955.0,0.108747]
[1732001781619,0.02029099,91956.0,91955.0,0.121747]
[1732001781856,0.02129099,91956.0,91955.0,0.145747]
[1732001782588,0.108739,91963.0,91956.0,0.108747]
[1732001782589,0.03248359,91958.0,91956.0,0.108747]
[1732001782838,0.21745,91975.0,91956.0,0.217495]
[1732001783085,0.21745,91975.0,91955.0,0.024]
[1732001783086,0.10874,91963.0,91957.0,0.108745]
[1732001783306,0.227464,91970.0,91959.0,0.108743]
[1732001783524,0.1095926,91964.0,91958.0,0.108744]
[1732001784018,0.1105926,91964.0,91958.0,0.108744]
[1732001784286,0.0018546,91964.0,91959.0,0.32049357]
[1732001784516,0.0008546,91964.0,91963.0,0.18920758]
[1732001784733,0.0008546,91964.0,91963.0,0.21780155]
[1732001784734,0.0018546,91964.0,91963.0,0.21780155]
[1732001784979,0.0018546,91964.0,91963.0,0.22780155]
[1732001785224,0.0018546,91964.0,91963.0,0.32780155]
[1732001785955,0.0008546,91964.0,91963.0,0.32780155]
[1732001786381,0.0018546,91964.0,91963.0,0.40870155]
[1732001786616,0.0018546,91964.0,91963.0,0.40670155]
[1732001786866,0.0018546,91964.0,91963.0,0.44254408]
[1732001786867,0.0008546,91964.0,91963.0,0.44254408]
[1732001787090,0.0018546,91964.0,91963.0,0.50394408]
[1732001787309,0.0018546,91964.0,91963.0,0.56915662]
[1732001787519,0.0008546,91964.0,91963.0,0.49994408]
[1732001787725,0.0008546,91964.0,91963.0,0.54894408]
[1732001787959,0.0018546,91964.0,91963.0,0.52094408]
[1732001788394,0.0018546,91964.0,91963.0,0.54894408]
[1732001789459,0.0018546,91964.0,91963.0,0.55094408]
[1732001789674,0.0008546,91964.0,91963.0,0.52994408]
[1732001789888,0.0018546,91964.0,91963.0,0.55194408]
[1732001790799,0.0018546,91964.0,91963.0,0.55394408]
[1732001793043,0.0008546,91982.0,91981.0,0.118718]
[1732001793258,0.0008546,91982.0,91981.0,0.22778055]
[1732001793690,0.0008546,91982.0,91981.0,0.33778055]
[1732001794828,0.0008546,91982.0,91981.0,0.36578055]
[1732001795279,0.0008546,91982.0,91981.0,0.54784638]
[1732001795491,0.0008546,91982.0,91981.0,0.46928055]
[1732001795699,0.0008546,91982.0,91981.0,0.48128055]
[1732001795914,0.0008546,91982.0,91981.0,0.46788665]
[1732001796127,0.0008546,91982.0,91981.0,0.45588665]
[1732001796558,0.0008546,91982.0,91981.0,0.51188665]
[1732001796799,0.0008546,91982.0,91981.0,0.48388665]
[1732001797017,0.0008546,91982.0,91981.0,0.51962419]
[1732001797671,0.10304982,91998.0,91997.0,0.108699]
[1732001798305,0.0451,92000.0,91996.0,0.1087]
[1732001798534,0.0451,92000.0,91990.0,0.217414]
[1732001798745,0.0451,92000.0,91996.0,0.16293102]
[1732001798988,0.0008543,92003.0,92002.0,0.108693]
[1732001799764,0.0008543,92003.0,92002.0,0.21775555]